[Event "Titled Tuesday Blitz July 27 2021"]
[White "Arabidze, Meri"]
[Black "Martins, Vinicius Tine"]
[WhiteFideId "13604040"]
[BlackFideId "2112884"]
[WhiteElo "2432"]
[BlackElo "2373"]
[Result "1-0"]
[Round "08"]
[TimeControl "180+1"]
[Date "2021.07.27"]
[WhiteClock "0:01:17"]
[BlackClock "0:00:27"]

1. Nf3 {[%clk 0:03:00]}  c5 {[%clk 0:02:56]} 2. g3 {[%clk 0:03:00]}  b6 {[%clk 0:02:52]} 3. Bg2 {[%clk 0:03:01]}  Bb7 {[%clk 0:02:53]} 4. O-O {[%clk 0:03:01]}  g6 {[%clk 0:02:53]} 5. d3 {[%clk 0:03:02]}  Bg7 {[%clk 0:02:53]} 6. c3 {[%clk 0:03:02]}  Nf6 {[%clk 0:02:51]} 7. Nbd2 {[%clk 0:03:03]}  O-O {[%clk 0:02:50]} 8. e4 {[%clk 0:03:03]}  d5 {[%clk 0:02:49]} 9. e5 {[%clk 0:03:02]}  Nfd7 {[%clk 0:02:44]} 10. d4 {[%clk 0:03:02]}  Nc6 {[%clk 0:02:41]} 11. a3 {[%clk 0:03:00]}  e6 {[%clk 0:02:39]} 12. Re1 {[%clk 0:03:00]}  a5 {[%clk 0:02:36]} 13. Nf1 {[%clk 0:02:59]}  a4 {[%clk 0:02:35]} 14. h4 {[%clk 0:02:57]}  Ba6 {[%clk 0:02:20]} 15. Bg5 {[%clk 0:02:56]}  Qc7 {[%clk 0:02:12]} 16. h5 {[%clk 0:02:54]}  Bxf1 {[%clk 0:02:10]} 17. Rxf1 {[%clk 0:02:52]}  Na5 {[%clk 0:01:54]} 18. h6 {[%clk 0:02:47]}  Bh8 {[%clk 0:01:52]} 19. Nh2 {[%clk 0:02:47]}  Nb3 {[%clk 0:01:49]} 20. Rb1 {[%clk 0:02:31]}  f6 {[%clk 0:01:44]} 21. exf6 {[%clk 0:02:29]}  Bxf6 {[%clk 0:01:43]} 22. Bxf6 {[%clk 0:02:24]}  Nxf6 {[%clk 0:01:41]} 23. dxc5 {[%clk 0:02:24]}  Qxc5 {[%clk 0:01:29]} 24. Ng4 {[%clk 0:02:17]}  Nxg4 {[%clk 0:01:25]} 25. Qxg4 {[%clk 0:02:18]}  Rf6 {[%clk 0:01:21]} 26. Rbe1 {[%clk 0:02:02]}  Qc6 {[%clk 0:01:03]} 27. Re2 {[%clk 0:01:59]}  Raf8 {[%clk 0:01:01]} 28. Rfe1 {[%clk 0:01:57]}  Nc5 {[%clk 0:01:01]} 29. Qd4 {[%clk 0:01:43]}  Qd6 {[%clk 0:00:54]} 30. Rxe6 {[%clk 0:01:25]}  Nxe6 {[%clk 0:00:36]} 31. Rxe6 {[%clk 0:01:24]}  Qc5 {[%clk 0:00:27]} 32. Rxf6 {[%clk 0:01:17]} 1-0


[Site "https://www.chess.com"]

[Event "Titled Tuesday Blitz July 27 2021"]
[White "Balabayeva, Xeniya"]
[Black "Amburgy, Ryan"]
[WhiteFideId "13719688"]
[BlackFideId "30924820"]
[WhiteElo "1988"]
[BlackElo "2066"]
[Result "0-1"]
[Round "08"]
[TimeControl "180+1"]
[Date "2021.07.27"]
[WhiteClock "0:00:01"]
[BlackClock "0:00:12"]

1. e4 {[%clk 0:03:00]}  c6 {[%clk 0:03:00]} 2. d4 {[%clk 0:02:59]}  d5 {[%clk 0:03:01]} 3. Nd2 {[%clk 0:02:59]}  dxe4 {[%clk 0:03:02]} 4. Nxe4 {[%clk 0:03:00]}  Nf6 {[%clk 0:03:03]} 5. Nxf6+ {[%clk 0:03:00]}  exf6 {[%clk 0:03:03]} 6. c3 {[%clk 0:03:00]}  Bd6 {[%clk 0:03:04]} 7. Bd3 {[%clk 0:03:00]}  O-O {[%clk 0:03:05]} 8. Ne2 {[%clk 0:03:00]}  Re8 {[%clk 0:03:05]} 9. Qc2 {[%clk 0:03:00]}  h5 {[%clk 0:03:05]} 10. Be3 {[%clk 0:03:00]}  Nd7 {[%clk 0:03:06]} 11. O-O-O {[%clk 0:02:59]}  Nf8 {[%clk 0:03:06]} 12. h3 {[%clk 0:02:52]}  Be6 {[%clk 0:03:07]} 13. Kb1 {[%clk 0:02:51]}  b5 {[%clk 0:03:02]} 14. g4 {[%clk 0:02:49]}  h4 {[%clk 0:03:03]} 15. Nc1 {[%clk 0:02:36]}  Bd5 {[%clk 0:02:53]} 16. Rhg1 {[%clk 0:02:33]}  Bh2 {[%clk 0:02:52]} 17. Rgf1 {[%clk 0:02:31]}  a5 {[%clk 0:02:46]} 18. Qd2 {[%clk 0:02:16]}  Bc7 {[%clk 0:02:31]} 19. f4 {[%clk 0:02:13]}  g6 {[%clk 0:02:08]} 20. Bf2 {[%clk 0:02:11]}  Ne6 {[%clk 0:01:42]} 21. Bxh4 {[%clk 0:02:02]}  Bxf4 {[%clk 0:01:42]} 22. Qc2 {[%clk 0:01:40]}  g5 {[%clk 0:01:19]} 23. Bf2 {[%clk 0:01:38]}  a4 {[%clk 0:01:05]} 24. Ne2 {[%clk 0:01:34]}  a3 {[%clk 0:01:00]} 25. b3 {[%clk 0:01:33]}  Bc7 {[%clk 0:00:48]} 26. h4 {[%clk 0:01:31]}  Kg7 {[%clk 0:00:47]} 27. h5 {[%clk 0:01:28]}  Nf4 {[%clk 0:00:36]} 28. h6+ {[%clk 0:01:13]}  Kh8 {[%clk 0:00:37]} 29. Nxf4 {[%clk 0:01:13]}  Bxf4 {[%clk 0:00:36]} 30. Be1 {[%clk 0:01:09]}  Qd6 {[%clk 0:00:31]} 31. Bd2 {[%clk 0:01:07]}  Bxd2 {[%clk 0:00:28]} 32. Rxd2 {[%clk 0:01:04]}  Re3 {[%clk 0:00:28]} 33. Rdf2 {[%clk 0:00:54]}  Rae8 {[%clk 0:00:25]} 34. Rd1 {[%clk 0:00:20]}  Bf3 {[%clk 0:00:17]} 35. Rdf1 {[%clk 0:00:12]}  Re1+ {[%clk 0:00:17]} 36. Qc1 {[%clk 0:00:10]}  Rxc1+ {[%clk 0:00:17]} 37. Kxc1 {[%clk 0:00:10]}  Be4 {[%clk 0:00:14]} 38. Bxe4 {[%clk 0:00:07]}  Rxe4 {[%clk 0:00:15]} 39. Rxf6 {[%clk 0:00:06]}  Qg3 {[%clk 0:00:15]} 40. R6f3 {[%clk 0:00:04]}  Re1+ {[%clk 0:00:16]} 41. Kd2 {[%clk 0:00:02]}  Qg2+ {[%clk 0:00:11]} 42. R1f2 {[%clk 0:00:02]}  Qg1 {[%clk 0:00:09]} 43. Rxf7 {[%clk 0:00:02]}  Rd1+ {[%clk 0:00:10]} 44. Ke3 {[%clk 0:00:01]}  Qe1+ {[%clk 0:00:11]} 45. Re2 {[%clk 0:00:02]}  Qxc3+ {[%clk 0:00:12]} 46. Kf2 {[%clk 0:00:01]}  Qxd4+ {[%clk 0:00:12]} 47. Re3 {[%clk 0:00:01]}  Rd2+ {[%clk 0:00:12]} 0-1


[Site "https://www.chess.com"]

[Event "Titled Tuesday Blitz July 27 2021"]
[White "De Silva, L M S T"]
[Black "Ljukin, Sergei"]
[WhiteFideId "9953698"]
[BlackFideId "14102200"]
[WhiteElo "1621"]
[BlackElo "2309"]
[Result "1-0"]
[Round "08"]
[TimeControl "180+1"]
[Date "2021.07.27"]
[WhiteClock "0:00:45"]
[BlackClock "0:00:08"]

1. b3 {[%clk 0:02:58]}  e5 {[%clk 0:02:59]} 2. Bb2 {[%clk 0:02:57]}  Nc6 {[%clk 0:02:59]} 3. e3 {[%clk 0:02:58]}  Nf6 {[%clk 0:02:59]} 4. Bb5 {[%clk 0:02:53]}  Bd6 {[%clk 0:02:57]} 5. Na3 {[%clk 0:02:50]}  Na5 {[%clk 0:02:56]} 6. Nc4 {[%clk 0:02:49]}  Nxc4 {[%clk 0:02:55]} 7. Bxc4 {[%clk 0:02:50]}  c6 {[%clk 0:02:54]} 8. Ne2 {[%clk 0:02:49]}  Bc7 {[%clk 0:02:54]} 9. d4 {[%clk 0:02:44]}  e4 {[%clk 0:02:40]} 10. d5 {[%clk 0:02:40]}  b5 {[%clk 0:02:40]} 11. d6 {[%clk 0:02:30]}  Bb6 {[%clk 0:02:21]} 12. Ng3 {[%clk 0:02:28]}  bxc4 {[%clk 0:02:19]} 13. Nf5 {[%clk 0:02:28]}  O-O {[%clk 0:02:16]} 14. Ne7+ {[%clk 0:02:28]}  Kh8 {[%clk 0:02:11]} 15. Bxf6 {[%clk 0:02:23]}  gxf6 {[%clk 0:02:10]} 16. Qh5 {[%clk 0:02:23]}  Ba5+ {[%clk 0:01:55]} 17. Kf1 {[%clk 0:02:09]}  Bc3 {[%clk 0:01:55]} 18. Rd1 {[%clk 0:02:06]}  Qa5 {[%clk 0:01:49]} 19. Qh6 {[%clk 0:02:04]}  Ba6 {[%clk 0:01:45]} 20. b4 {[%clk 0:01:55]}  Qg5 {[%clk 0:01:35]} 21. Qh3 {[%clk 0:01:53]}  Rad8 {[%clk 0:01:23]} 22. g4 {[%clk 0:01:42]}  Bxb4 {[%clk 0:01:12]} 23. Nf5 {[%clk 0:01:39]}  c3+ {[%clk 0:01:03]} 24. Ke1 {[%clk 0:01:39]}  Bc4 {[%clk 0:00:40]} 25. Rd4 {[%clk 0:01:33]}  c5 {[%clk 0:00:34]} 26. Rxc4 {[%clk 0:01:32]}  Rde8 {[%clk 0:00:20]} 27. Rg1 {[%clk 0:01:32]}  Re5 {[%clk 0:00:19]} 28. Rg3 {[%clk 0:01:32]}  Rb8 {[%clk 0:00:16]} 29. Ke2 {[%clk 0:01:29]}  Ba5 {[%clk 0:00:14]} 30. Ra4 {[%clk 0:01:09]}  c4 {[%clk 0:00:13]} 31. Qg2 {[%clk 0:01:05]}  Rb2 {[%clk 0:00:10]} 32. Nd4 {[%clk 0:01:05]}  Bb6 {[%clk 0:00:08]} 33. h4 {[%clk 0:01:00]}  Qg6 {[%clk 0:00:07]} 34. h5 {[%clk 0:00:58]}  Qg5 {[%clk 0:00:07]} 35. Rxc4 {[%clk 0:00:46]}  Bxd4 {[%clk 0:00:07]} 36. Rc8+ {[%clk 0:00:46]}  Kg7 {[%clk 0:00:07]} 37. h6+ {[%clk 0:00:46]}  Kg6 {[%clk 0:00:07]} 38. Rg8+ {[%clk 0:00:46]}  Kxh6 {[%clk 0:00:08]} 39. Rh3+ {[%clk 0:00:45]} 1-0


[Site "https://www.chess.com"]

[Event "Titled Tuesday Blitz July 27 2021"]
[White "Dejmek, Mark"]
[Black "Prydun, Andriy"]
[WhiteFideId "2017628"]
[BlackFideId "14145898"]
[WhiteElo "2309"]
[BlackElo "2024"]
[Result "0-1"]
[Round "08"]
[TimeControl "180+1"]
[Date "2021.07.27"]
[WhiteClock "0:00:05"]
[BlackClock "0:00:19"]

1. e4 {[%clk 0:03:00]}  c6 {[%clk 0:02:34]} 2. d4 {[%clk 0:02:59]}  d5 {[%clk 0:02:33]} 3. e5 {[%clk 0:03:00]}  Bf5 {[%clk 0:02:32]} 4. Nc3 {[%clk 0:03:00]}  e6 {[%clk 0:02:32]} 5. g4 {[%clk 0:03:00]}  Bg6 {[%clk 0:02:31]} 6. Nge2 {[%clk 0:03:01]}  f6 {[%clk 0:02:30]} 7. h4 {[%clk 0:02:49]}  Nd7 {[%clk 0:02:25]} 8. h5 {[%clk 0:02:46]}  Bf7 {[%clk 0:02:25]} 9. f4 {[%clk 0:02:45]}  c5 {[%clk 0:02:23]} 10. exf6 {[%clk 0:02:30]}  Ngxf6 {[%clk 0:02:18]} 11. Ng3 {[%clk 0:02:07]}  cxd4 {[%clk 0:02:15]} 12. Nb5 {[%clk 0:02:07]}  Bc5 {[%clk 0:01:50]} 13. g5 {[%clk 0:01:57]}  Ne4 {[%clk 0:01:50]} 14. g6 {[%clk 0:01:23]}  Nxg3 {[%clk 0:01:37]} 15. gxf7+ {[%clk 0:01:23]}  Kxf7 {[%clk 0:01:38]} 16. Rg1 {[%clk 0:01:15]}  Nf5 {[%clk 0:01:34]} 17. Bd3 {[%clk 0:00:59]}  Qh4+ {[%clk 0:01:27]} 18. Kf1 {[%clk 0:00:52]}  Ng3+ {[%clk 0:00:53]} 19. Kg2 {[%clk 0:00:35]}  Nf6 {[%clk 0:00:42]} 20. b4 {[%clk 0:00:20]}  Ng4 {[%clk 0:00:41]} 21. Rh1 {[%clk 0:00:09]}  Nxh1 {[%clk 0:00:39]} 22. Qxh1 {[%clk 0:00:06]}  Qxh1+ {[%clk 0:00:28]} 23. Kxh1 {[%clk 0:00:06]}  Nf2+ {[%clk 0:00:18]} 24. Kg2 {[%clk 0:00:06]}  Nxd3 {[%clk 0:00:19]} 25. cxd3 {[%clk 0:00:05]}  Bxb4 {[%clk 0:00:19]} 26. Nxd4 {[%clk 0:00:05]}  Bc3 {[%clk 0:00:19]} 0-1


[Site "https://www.chess.com"]

[Event "Titled Tuesday Blitz July 27 2021"]
[White "Dobrowolski, Piotr"]
[Black "Wong, Yinn Long"]
[WhiteFideId "1106236"]
[BlackFideId "5707684"]
[WhiteElo "2304"]
[BlackElo "2016"]
[Result "1/2-1/2"]
[Round "08"]
[TimeControl "180+1"]
[Date "2021.07.27"]
[WhiteClock "0:00:15"]
[BlackClock "0:00:14"]

1. e4 {[%clk 0:03:00]}  e6 {[%clk 0:03:00]} 2. Nf3 {[%clk 0:02:57]}  d5 {[%clk 0:03:00]} 3. Nc3 {[%clk 0:02:58]}  d4 {[%clk 0:03:01]} 4. Ne2 {[%clk 0:02:57]}  c5 {[%clk 0:03:02]} 5. c3 {[%clk 0:02:58]}  Nf6 {[%clk 0:03:00]} 6. e5 {[%clk 0:02:54]}  Nfd7 {[%clk 0:03:01]} 7. cxd4 {[%clk 0:02:54]}  cxd4 {[%clk 0:03:02]} 8. Nexd4 {[%clk 0:02:54]}  Nxe5 {[%clk 0:03:02]} 9. Bb5+ {[%clk 0:02:54]}  Nec6 {[%clk 0:02:49]} 10. O-O {[%clk 0:02:54]}  Bd7 {[%clk 0:02:39]} 11. Ne2 {[%clk 0:02:52]}  Bd6 {[%clk 0:02:36]} 12. d4 {[%clk 0:02:52]}  O-O {[%clk 0:02:34]} 13. Re1 {[%clk 0:02:51]}  Ne7 {[%clk 0:02:28]} 14. Bd3 {[%clk 0:02:46]}  Bc6 {[%clk 0:02:23]} 15. Nf4 {[%clk 0:02:46]}  Nd7 {[%clk 0:02:19]} 16. Ne5 {[%clk 0:02:24]}  Nf6 {[%clk 0:02:16]} 17. Be3 {[%clk 0:02:15]}  g6 {[%clk 0:02:11]} 18. Nh3 {[%clk 0:01:44]}  Rc8 {[%clk 0:02:03]} 19. Bh6 {[%clk 0:01:20]}  Re8 {[%clk 0:02:00]} 20. Ng5 {[%clk 0:01:19]}  Bxe5 {[%clk 0:01:53]} 21. dxe5 {[%clk 0:01:20]}  Qd5 {[%clk 0:01:42]} 22. Nf3 {[%clk 0:01:07]}  Nd7 {[%clk 0:01:21]} 23. Bg5 {[%clk 0:00:57]}  Nf5 {[%clk 0:01:11]} 24. Be4 {[%clk 0:00:55]}  Qxd1 {[%clk 0:01:07]} 25. Raxd1 {[%clk 0:00:56]}  Nb6 {[%clk 0:01:04]} 26. g4 {[%clk 0:00:53]}  Ne7 {[%clk 0:01:02]} 27. Bxe7 {[%clk 0:00:44]}  Rxe7 {[%clk 0:01:03]} 28. Bxc6 {[%clk 0:00:44]}  Rxc6 {[%clk 0:01:04]} 29. Rd8+ {[%clk 0:00:43]}  Kg7 {[%clk 0:01:04]} 30. Ng5 {[%clk 0:00:42]}  Nd5 {[%clk 0:00:58]} 31. Ne4 {[%clk 0:00:37]}  Rc2 {[%clk 0:00:58]} 32. g5 {[%clk 0:00:33]}  Rec7 {[%clk 0:00:41]} 33. Nf6 {[%clk 0:00:31]}  Rc8 {[%clk 0:00:40]} 34. Rxc8 {[%clk 0:00:28]}  Rxc8 {[%clk 0:00:41]} 35. Rd1 {[%clk 0:00:28]}  Rc5 {[%clk 0:00:32]} 36. h4 {[%clk 0:00:26]}  Rc2 {[%clk 0:00:30]} 37. Nxd5 {[%clk 0:00:19]}  exd5 {[%clk 0:00:30]} 38. Rxd5 {[%clk 0:00:19]}  Rxb2 {[%clk 0:00:30]} 39. Rd7 {[%clk 0:00:20]}  Kf8 {[%clk 0:00:27]} 40. e6 {[%clk 0:00:20]}  fxe6 {[%clk 0:00:25]} 41. Rxh7 {[%clk 0:00:20]}  a5 {[%clk 0:00:22]} 42. a4 {[%clk 0:00:19]}  Rb4 {[%clk 0:00:23]} 43. Kg2 {[%clk 0:00:19]}  Kg8 {[%clk 0:00:21]} 44. Re7 {[%clk 0:00:18]}  Rxh4 {[%clk 0:00:21]} 45. Rxb7 {[%clk 0:00:18]}  Rxa4 {[%clk 0:00:20]} 46. f3 {[%clk 0:00:17]}  Rb4 {[%clk 0:00:18]} 47. Re7 {[%clk 0:00:17]}  Rb5 {[%clk 0:00:16]} 48. Rxe6 {[%clk 0:00:17]}  Rxg5+ {[%clk 0:00:17]} 49. Kf2 {[%clk 0:00:17]}  Rf5 {[%clk 0:00:17]} 50. Ra6 {[%clk 0:00:17]}  Kf7 {[%clk 0:00:17]} 51. Ke3 {[%clk 0:00:18]}  Kg7 {[%clk 0:00:18]} 52. f4 {[%clk 0:00:18]}  Kh6 {[%clk 0:00:18]} 53. Kf3 {[%clk 0:00:18]}  Rb5 {[%clk 0:00:19]} 54. Kg4 {[%clk 0:00:18]}  Rc5 {[%clk 0:00:18]} 55. Kg3 {[%clk 0:00:18]}  Kh5 {[%clk 0:00:18]} 56. Kh3 {[%clk 0:00:17]}  Rc3+ {[%clk 0:00:18]} 57. Kg2 {[%clk 0:00:18]}  Ra3 {[%clk 0:00:19]} 58. Rf6 {[%clk 0:00:16]}  a4 {[%clk 0:00:16]} 59. f5 {[%clk 0:00:16]}  g5 {[%clk 0:00:17]} 60. Rb6 {[%clk 0:00:13]}  Kg4 {[%clk 0:00:17]} 61. f6 {[%clk 0:00:13]}  Ra2+ {[%clk 0:00:18]} 62. Kf1 {[%clk 0:00:13]}  Ra3 {[%clk 0:00:17]} 63. Rb4+ {[%clk 0:00:11]}  Kh5 {[%clk 0:00:17]} 64. f7 {[%clk 0:00:12]}  Rf3+ {[%clk 0:00:16]} 65. Kg2 {[%clk 0:00:12]}  Rxf7 {[%clk 0:00:14]} 66. Rxa4 {[%clk 0:00:12]}  Rc7 {[%clk 0:00:15]} 67. Kg1 {[%clk 0:00:12]}  Rc2 {[%clk 0:00:15]} 68. Ra1 {[%clk 0:00:13]}  Rb2 {[%clk 0:00:15]} 69. Rc1 {[%clk 0:00:12]}  Rd2 {[%clk 0:00:15]} 70. Rb1 {[%clk 0:00:12]}  Rc2 {[%clk 0:00:15]} 71. Ra1 {[%clk 0:00:13]}  Kh4 {[%clk 0:00:16]} 72. Rb1 {[%clk 0:00:13]}  Kg3 {[%clk 0:00:16]} 73. Ra1 {[%clk 0:00:13]}  Rg2+ {[%clk 0:00:16]} 74. Kh1 {[%clk 0:00:12]}  Rh2+ {[%clk 0:00:15]} 75. Kg1 {[%clk 0:00:12]}  Rb2 {[%clk 0:00:16]} 76. Kh1 {[%clk 0:00:12]}  Kf4 {[%clk 0:00:16]} 77. Kg1 {[%clk 0:00:12]}  Ke3 {[%clk 0:00:16]} 78. Ra3+ {[%clk 0:00:12]}  Kf4 {[%clk 0:00:16]} 79. Ra1 {[%clk 0:00:13]}  Rd2 {[%clk 0:00:15]} 80. Ra4+ {[%clk 0:00:13]}  Kf3 {[%clk 0:00:15]} 81. Ra1 {[%clk 0:00:14]}  g4 {[%clk 0:00:15]} 82. Ra3+ {[%clk 0:00:14]}  Kf4 {[%clk 0:00:15]} 83. Ra1 {[%clk 0:00:15]}  Kg5 {[%clk 0:00:16]} 84. Ra5+ {[%clk 0:00:15]}  Kh4 {[%clk 0:00:17]} 85. Ra1 {[%clk 0:00:16]}  Rb2 {[%clk 0:00:17]} 86. Kh1 {[%clk 0:00:16]}  Kh3 {[%clk 0:00:17]} 87. Kg1 {[%clk 0:00:16]}  Rg2+ {[%clk 0:00:17]} 88. Kh1 {[%clk 0:00:16]}  Rh2+ {[%clk 0:00:17]} 89. Kg1 {[%clk 0:00:16]}  Rc2 {[%clk 0:00:17]} 90. Kh1 {[%clk 0:00:16]}  Rc3 {[%clk 0:00:15]} 91. Kg1 {[%clk 0:00:16]}  Rb3 {[%clk 0:00:16]} 92. Kh1 {[%clk 0:00:17]}  Rg3 {[%clk 0:00:16]} 93. Rb1 {[%clk 0:00:16]}  Rg2 {[%clk 0:00:13]} 94. Rb3+ {[%clk 0:00:15]}  g3 {[%clk 0:00:14]} 95. Rb1 {[%clk 0:00:16]}  Rh2+ {[%clk 0:00:12]} 96. Kg1 {[%clk 0:00:16]}  Rg2+ {[%clk 0:00:13]} 97. Kh1 {[%clk 0:00:16]}  Rf2 {[%clk 0:00:14]} 98. Kg1 {[%clk 0:00:16]}  Rd2 {[%clk 0:00:14]} 99. Ra1 {[%clk 0:00:15]}  Rc2 {[%clk 0:00:14]} 100. Rb1 {[%clk 0:00:16]}  Rg2+ {[%clk 0:00:14]} 101. Kh1 {[%clk 0:00:15]} 1/2-1/2


[Site "https://www.chess.com"]

[Event "Titled Tuesday Blitz July 27 2021"]
[White "Dvirnyy, Danyyil"]
[Black "Ozates, Tuna"]
[WhiteFideId "817570"]
[BlackFideId "6354521"]
[WhiteElo "2531"]
[BlackElo "1872"]
[Result "1-0"]
[Round "08"]
[TimeControl "180+1"]
[Date "2021.07.27"]
[WhiteClock "0:00:05"]
[BlackClock "0:00:01"]

1. c4 {[%clk 0:03:00]}  c5 {[%clk 0:02:54]} 2. g3 {[%clk 0:03:00]}  Nc6 {[%clk 0:02:55]} 3. Bg2 {[%clk 0:03:00]}  g6 {[%clk 0:02:55]} 4. Nc3 {[%clk 0:03:00]}  Bg7 {[%clk 0:02:56]} 5. e3 {[%clk 0:03:00]}  d6 {[%clk 0:02:55]} 6. Nge2 {[%clk 0:03:00]}  e5 {[%clk 0:02:53]} 7. b3 {[%clk 0:02:57]}  Nge7 {[%clk 0:02:52]} 8. Bb2 {[%clk 0:02:57]}  O-O {[%clk 0:02:53]} 9. O-O {[%clk 0:02:56]}  Be6 {[%clk 0:02:54]} 10. h3 {[%clk 0:02:53]}  Qd7 {[%clk 0:02:53]} 11. Kh2 {[%clk 0:02:53]}  f5 {[%clk 0:02:54]} 12. f4 {[%clk 0:02:53]}  e4 {[%clk 0:02:54]} 13. d3 {[%clk 0:02:46]}  d5 {[%clk 0:02:42]} 14. dxe4 {[%clk 0:01:41]}  dxe4 {[%clk 0:02:39]} 15. Qxd7 {[%clk 0:01:39]}  Bxd7 {[%clk 0:02:40]} 16. Rad1 {[%clk 0:01:34]}  Be6 {[%clk 0:02:29]} 17. g4 {[%clk 0:01:32]}  Rfd8 {[%clk 0:02:29]} 18. Kg3 {[%clk 0:01:28]}  Nb4 {[%clk 0:02:26]} 19. Nc1 {[%clk 0:01:28]}  Nc2 {[%clk 0:02:17]} 20. Kf2 {[%clk 0:01:26]}  Nc6 {[%clk 0:02:06]} 21. Na4 {[%clk 0:01:17]}  Bxb2 {[%clk 0:02:02]} 22. Nxb2 {[%clk 0:01:18]}  fxg4 {[%clk 0:01:56]} 23. Bxe4 {[%clk 0:01:17]}  g3+ {[%clk 0:01:30]} 24. Kf3 {[%clk 0:01:05]}  g2 {[%clk 0:01:30]} 25. Rg1 {[%clk 0:00:55]}  Rxd1 {[%clk 0:01:29]} 26. Rxd1 {[%clk 0:00:55]}  Rd8 {[%clk 0:01:30]} 27. Rxd8+ {[%clk 0:00:36]}  Nxd8 {[%clk 0:01:30]} 28. Kxg2 {[%clk 0:00:37]}  Nxe3+ {[%clk 0:01:30]} 29. Kf3 {[%clk 0:00:38]}  Nf5 {[%clk 0:01:28]} 30. Ne2 {[%clk 0:00:35]}  Kf7 {[%clk 0:01:22]} 31. Nd3 {[%clk 0:00:34]}  b6 {[%clk 0:01:22]} 32. Ne5+ {[%clk 0:00:34]}  Ke7 {[%clk 0:01:22]} 33. Nd3 {[%clk 0:00:24]}  Nd6 {[%clk 0:01:20]} 34. h4 {[%clk 0:00:21]}  Nxe4 {[%clk 0:00:57]} 35. Kxe4 {[%clk 0:00:21]}  Bf5+ {[%clk 0:00:57]} 36. Ke3 {[%clk 0:00:22]}  Bxd3 {[%clk 0:00:58]} 37. Kxd3 {[%clk 0:00:23]}  Nc6 {[%clk 0:00:52]} 38. Ke4 {[%clk 0:00:22]}  Ke6 {[%clk 0:00:52]} 39. Ng3 {[%clk 0:00:19]}  Nd4 {[%clk 0:00:52]} 40. Ke3 {[%clk 0:00:11]}  Nf5+ {[%clk 0:00:50]} 41. Nxf5 {[%clk 0:00:11]}  Kxf5 {[%clk 0:00:51]} 42. Kf3 {[%clk 0:00:11]}  a6 {[%clk 0:00:47]} 43. Kg3 {[%clk 0:00:10]}  Ke4 {[%clk 0:00:42]} 44. Kg4 {[%clk 0:00:10]}  h6 {[%clk 0:00:42]} 45. a3 {[%clk 0:00:09]}  b5 {[%clk 0:00:33]} 46. cxb5 {[%clk 0:00:09]}  axb5 {[%clk 0:00:34]} 47. a4 {[%clk 0:00:10]}  bxa4 {[%clk 0:00:10]} 48. bxa4 {[%clk 0:00:10]}  c4 {[%clk 0:00:11]} 49. a5 {[%clk 0:00:11]}  Kd5 {[%clk 0:00:09]} 50. a6 {[%clk 0:00:08]}  Kc6 {[%clk 0:00:08]} 51. Kf3 {[%clk 0:00:08]}  Kb6 {[%clk 0:00:08]} 52. h5 {[%clk 0:00:08]}  c3 {[%clk 0:00:01]} 53. hxg6 {[%clk 0:00:05]}  c2 {[%clk 0:00:01]} 54. g7 {[%clk 0:00:06]}  c1=Q {[%clk 0:00:02]} 55. g8=Q {[%clk 0:00:06]}  Qf1+ {[%clk 0:00:03]} 56. Ke4 {[%clk 0:00:06]}  Qe2+ {[%clk 0:00:03]} 57. Kf5 {[%clk 0:00:06]}  Qd3+ {[%clk 0:00:04]} 58. Kf6 {[%clk 0:00:06]}  Qd4+ {[%clk 0:00:04]} 59. Kf5 {[%clk 0:00:07]}  Qd3+ {[%clk 0:00:05]} 60. Kg4 {[%clk 0:00:06]}  Qe2+ {[%clk 0:00:04]} 61. Kh3 {[%clk 0:00:04]}  Qf1+ {[%clk 0:00:04]} 62. Qg2 {[%clk 0:00:02]}  Qd3+ {[%clk 0:00:05]} 63. Qg3 {[%clk 0:00:02]}  Qf5+ {[%clk 0:00:05]} 64. Qg4 {[%clk 0:00:02]}  Qd3+ {[%clk 0:00:05]} 65. Kh4 {[%clk 0:00:03]}  Qd8+ {[%clk 0:00:05]} 66. Kh5 {[%clk 0:00:03]}  Kxa6 {[%clk 0:00:05]} 67. Kxh6 {[%clk 0:00:02]}  Qh8+ {[%clk 0:00:05]} 68. Kg5 {[%clk 0:00:02]}  Qg7+ {[%clk 0:00:06]} 69. Kh4 {[%clk 0:00:03]}  Qh8+ {[%clk 0:00:06]} 70. Qh5 {[%clk 0:00:03]}  Qf6+ {[%clk 0:00:06]} 71. Qg5 {[%clk 0:00:03]}  Qh8+ {[%clk 0:00:06]} 72. Kg4 {[%clk 0:00:03]}  Qc8+ {[%clk 0:00:06]} 73. f5 {[%clk 0:00:04]}  Qc4+ {[%clk 0:00:06]} 74. Qf4 {[%clk 0:00:04]}  Qg8+ {[%clk 0:00:06]} 75. Kh4 {[%clk 0:00:04]}  Qh8+ {[%clk 0:00:06]} 76. Kg4 {[%clk 0:00:04]}  Qg8+ {[%clk 0:00:07]} 77. Qg5 {[%clk 0:00:04]}  Qc4+ {[%clk 0:00:06]} 78. Kh5 {[%clk 0:00:05]}  Qe2+ {[%clk 0:00:07]} 79. Qg4 {[%clk 0:00:05]}  Qh2+ {[%clk 0:00:06]} 80. Kg6 {[%clk 0:00:05]}  Qc2 {[%clk 0:00:05]} 81. Qd4 {[%clk 0:00:04]}  Qg2+ {[%clk 0:00:04]} 82. Kf7 {[%clk 0:00:04]}  Qb7+ {[%clk 0:00:04]} 83. Ke6 {[%clk 0:00:05]}  Qc8+ {[%clk 0:00:04]} 84. Qd7 {[%clk 0:00:05]}  Qc4+ {[%clk 0:00:04]} 85. Qd5 {[%clk 0:00:05]}  Qe2+ {[%clk 0:00:04]} 86. Qe5 {[%clk 0:00:05]}  Qc4+ {[%clk 0:00:04]} 87. Ke7 {[%clk 0:00:05]}  Qh4+ {[%clk 0:00:01]} 88. f6 {[%clk 0:00:05]}  Qh7+ {[%clk 0:00:01]} 89. f7 {[%clk 0:00:05]} 1-0


[Site "https://www.chess.com"]